bitfinex/quotes_ETHUSD_20241215
["timestamp","ask_amount","ask_price","bid_price","bid_amount"]
[1734274797239,0.7976,3904.8,3903.7,3.0]
[1734274797637,0.7976,3904.8,3903.8,0.55]
[1734274797875,0.79451985,3904.8,3903.8,0.55]
[1734274798126,0.79451985,3904.8,3903.9,0.02560873]
[1734274798330,0.79451985,3904.8,3904.0,0.25871987]
[1734274798932,0.79451985,3904.8,3903.7,3.0]
[1734274799135,0.79451985,3904.8,3903.9,2.56153]
[1734274799346,0.79451985,3904.8,3903.5,0.55]
[1734274799347,0.79451985,3904.8,3903.8,2.56155]
[1734274799548,0.79451985,3904.8,3903.9,3.55]
[1734274799843,2.56054,3905.5,3904.3,0.55]
[1734274800196,2.54495,3905.5,3904.4,0.13421]
[1734274800892,2.56037,3905.7,3904.5,0.02560485]
[1734274801133,3.33007,3905.7,3904.4,0.15981477]
[1734274801300,3.33007,3905.7,3904.5,3.0]
[1734274802100,0.7697,3905.7,3904.4,0.13421]
[1734274802303,0.7697,3905.7,3904.5,0.147631]
[1734274802646,2.56056,3905.4,3904.5,0.147631]
[1734274803046,0.7697,3905.7,3904.5,0.147631]
[1734274803418,0.7697,3905.7,3904.6,2.56107]
[1734274803720,3.32951,3906.6,3905.1,2.56073]
[1734274803844,2.55985,3906.5,3905.3,0.55]
[1734274804039,0.7697,3906.6,3905.2,1.403173]
[1734274804261,0.7697,3906.1,3905.2,0.7921]
[1734274805644,0.7697,3906.1,3905.0,3.0]
[1734274805645,2.56019,3906.0,3905.0,3.0]
[1734274805883,2.56019,3906.0,3905.0,0.55]
[1734274806069,0.7697,3906.1,3905.0,3.1108]
[1734274806385,0.7697,3906.1,3905.1,3.0]
[1734274806557,0.7697,3906.1,3905.2,0.69285011]
[1734274806773,0.7697,3906.5,3905.3,2.5606]
[1734274807450,2.55996,3906.4,3905.0,3.13634923]
[1734274807649,0.7697,3906.5,3905.2,0.55]
[1734274807869,2.55997,3906.3,3905.2,0.55]
[1734274808080,3.32956,3906.5,3905.3,0.02559947]
[1734274808311,3.32956,3906.5,3905.6,2.56042]
[1734274808312,0.7697,3906.5,3905.6,2.56042]
[1734274808522,0.7697,3906.5,3905.7,3.7921]
[1734274809174,0.7697,3907.0,3905.9,2.56017]
[1734274809381,0.7697,3907.0,3906.0,0.690227]
[1734274809574,0.7697,3907.0,3905.7,3.0]
[1734274809575,2.5597,3906.7,3905.7,3.0]
[1734274809794,2.5597,3906.7,3905.5,3.0]
[1734274810189,0.7697,3906.6,3905.5,3.0]
[1734274810515,0.7697,3906.6,3905.4,2.56052]
[1734274811037,0.7697,3906.6,3905.5,3.0]
[1734274811311,0.7697,3906.6,3905.6,3.635262]
[1734274811779,0.7697,3906.6,3905.3,3.0]
[1734274812119,2.55984,3906.5,3905.3,3.0]
[1734274812792,0.7697,3906.6,3905.2,3.0]
[1734274812965,0.7697,3906.6,3905.5,2.56048]
[1734274813165,0.7697,3906.6,3905.3,1.42445261]
[1734274813166,3.32947,3906.6,3905.3,0.55]
[1734274813413,2.55998,3906.3,3905.3,1.575293]
[1734274813704,2.55998,3906.3,3905.0,3.8323]
[1734274813705,2.55998,3906.3,3905.1,3.55]
[1734274814075,0.8046,3906.5,3905.3,3.0]
[1734274814463,0.8046,3906.5,3905.3,2.5606]
[1734274814684,3.36444,3906.5,3905.1,0.55]
[1734274814855,3.36444,3906.5,3905.2,3.0]
[1734274814856,0.8046,3906.5,3905.2,3.0]
[1734274815062,0.8046,3905.8,3904.7,3.39331]
[1734274815262,3.36494,3905.8,3904.8,0.46013236]
[1734274815488,0.8046,3905.4,3904.2,1.06038257]
[1734274815688,0.8046,3905.4,3904.1,4.15195385]
[1734274815689,0.8046,3905.4,3904.3,2.18739015]
[1734274815916,3.36516,3905.4,3904.1,2.56138]
[1734274816120,3.36516,3905.4,3904.2,2.1874225]
[1734274816281,3.36516,3905.4,3904.0,1.89268257]
[1734274816282,2.5607,3905.2,3904.0,0.8323]
[1734274816487,0.5240293,3905.9,3904.0,0.8323]
[1734274816488,3.36535,3905.1,3904.1,0.23945936]
[1734274816802,0.8046,3905.1,3904.1,0.23945936]
[1734274817565,0.7512,3904.7,3903.6,0.8286]
[1734274818319,0.7512,3904.7,3903.7,0.02561031]
[1734274818525,0.7512,3904.7,3903.6,3.39032]
[1734274818664,0.7512,3904.7,3903.7,3.55]
[1734274818867,0.7512,3905.1,3903.8,0.0256096]
[1734274819118,0.7512,3905.1,3904.0,0.55]
[1734274822060,2.56095,3904.8,3904.0,0.55]
[1734274822250,3.312,3905.1,3904.0,0.55]
[1734274822446,0.7512,3905.1,3904.0,0.55]
[1734274822655,0.7512,3905.1,3903.7,0.02560797]
[1734274822852,0.7512,3904.2,3903.3,0.0256106]
[1734274823168,0.7512,3904.2,3902.5,3.15174726]
[1734274823169,2.5617,3903.7,3902.5,0.8286]
[1734274823325,2.5617,3903.7,3902.6,1.06476466]
[1734274823664,0.7512,3904.1,3902.6,0.18889826]
[1734274823835,0.7512,3904.1,3902.7,0.02561684]
[1734274824045,0.7512,3905.1,3903.4,0.8286]
[1734274824243,2.56096,3904.8,3903.4,0.8286]
[1734274824568,2.56096,3904.8,3903.5,1.21464774]
[1734274824733,2.56096,3904.8,3903.5,2.52796273]
[1734274824933,2.56096,3904.8,3903.6,0.87559674]
[1734274825267,2.56096,3904.8,3903.5,0.339051]
[1734274825427,2.56096,3904.8,3903.6,0.87582546]
[1734274825630,2.56096,3904.8,3903.7,0.46309372]
[1734274825832,2.56115,3904.5,3903.7,0.46309372]
[1734274826039,2.56081,3905.1,3903.5,0.339051]
[1734274826040,0.7512,3904.4,3903.5,0.339051]
[1734274826252,0.7512,3904.4,3903.6,0.87583551]
[1734274826664,0.7512,3905.9,3903.9,1.05900666]
[1734274826857,1.194041,3907.4,3905.0,0.55]
[1734274827057,1.194041,3907.4,3904.9,0.8286]
[1734274827058,2.55986,3906.5,3904.9,0.85420099]
[1734274827367,0.7512,3906.4,3905.0,6.28896975]
[1734274827568,0.7512,3906.4,3905.1,0.8750831]
[1734274828529,3.31111,3906.4,3905.1,0.8750831]
[1734274829146,2.55998,3906.3,3905.1,0.8750831]
[1734274829553,0.7512,3906.4,3905.1,0.8750831]
[1734274829554,2.56008,3906.2,3905.1,0.8750831]
[1734274829763,0.7512,3906.4,3905.2,0.38643132]
[1734274831669,2.56009,3906.2,3905.2,0.38643132]
[1734274831874,2.56009,3906.2,3904.9,1.88760666]
[1734274832664,2.56009,3906.2,3904.9,4.44847666]
[1734274833069,0.7512,3906.4,3904.9,4.44847666]
[1734274833276,0.7512,3906.4,3905.0,2.56079]
[1734274834474,0.7512,3906.4,3904.9,1.88760666]
[1734274834780,0.7512,3906.4,3905.2,2.56065]
[1734274834999,0.7512,3906.4,3905.3,2.5606]
[1734274836039,0.7512,3906.4,3905.1,0.55]
[1734274836810,2.55999,3906.3,3905.0,0.34761166]
[1734274837116,2.56015,3906.1,3905.0,0.34761166]
[1734274837261,2.56015,3906.1,3905.1,0.38237283]
[1734274837600,2.55998,3906.3,3905.1,0.38237283]
[1734274837901,2.56005,3906.2,3905.1,0.38237283]
[1734274838301,2.56025,3905.9,3904.9,1.05900666]
[1734274838507,0.7683,3905.8,3904.9,1.05900666]
[1734274838900,2.56037,3905.7,3904.9,1.05900666]
[1734274839228,2.56064,3905.3,3904.9,1.05900666]
[1734274839515,2.56066,3905.3,3904.9,1.05900666]
[1734274839883,2.5607,3905.2,3904.9,1.05900666]
[1734274840078,2.5607,3905.2,3904.2,0.8129]
[1734274840514,2.56076,3905.1,3904.2,0.8129]
[1734274840662,2.56076,3905.1,3904.2,1.00009067]
[1734274840971,2.56055,3905.5,3904.2,1.00009067]
[1734274841886,0.7683,3905.8,3904.2,1.00009067]
[1734274842196,2.56054,3905.5,3904.2,1.00009067]
[1734274842598,2.56058,3905.4,3904.2,1.00009067]
[1734274842760,2.56084,3905.0,3904.2,0.18719067]
[1734274843195,2.56084,3905.0,3903.9,0.825]
[1734274843371,2.56084,3905.0,3904.0,2.1933232]
[1734274843571,2.56084,3905.0,3904.1,0.87732928]
[1734274843902,2.56084,3905.0,3903.9,0.825]
[1734274844074,2.5607,3905.2,3904.0,2.19338853]
[1734274844402,2.5607,3905.2,3904.1,1.28509493]
[1734274844601,2.56079,3905.1,3904.1,0.40773952]
[1734274844762,2.56079,3905.1,3903.9,0.825]
[1734274844967,2.56079,3905.1,3904.0,0.87743902]
[1734274846403,3.32595,3905.3,3904.0,2.56146]
[1734274846762,2.5607,3905.2,3904.0,2.56146]
[1734274846967,2.5607,3905.2,3904.1,0.338646]
[1734274847703,2.5607,3905.2,3903.9,0.825]
[1734274848614,1.06795927,3906.2,3904.1,0.825]
[1734274848805,2.90121855,3906.5,3905.0,0.825]
[1734274848806,0.7653,3906.5,3905.0,0.825]
[1734274849005,0.7653,3906.5,3905.2,2.56066]
[1734274849213,0.7653,3906.5,3905.3,0.34112619]
[1734274850267,0.7653,3906.5,3905.3,2.90172619]
[1734274850508,2.55982,3906.6,3905.4,0.825]
[1734274851368,2.55985,3906.5,3905.4,0.825]
[1734274852199,0.7653,3906.8,3905.4,0.825]
[1734274852401,0.38461011,3906.7,3905.4,1.19767362]
[1734274853218,2.55977,3906.6,3905.4,1.19767362]
[1734274854014,0.38461011,3906.7,3905.4,1.19767362]
[1734274854187,2.55984,3906.5,3905.4,0.825]
[1734274856006,2.56011,3906.1,3905.4,0.825]
[1734274856324,2.55977,3906.6,3905.4,0.825]
[1734274856325,2.56018,3906.0,3905.4,0.825]
[1734274856505,3.38078,3906.0,3904.8,0.7864]
[1734274856704,3.38078,3906.0,3904.9,1.31811558]
[1734274857005,0.8206,3906.0,3904.9,0.44063667]
[1734274857191,0.8206,3906.0,3904.9,2.56086]
[1734274857393,0.8206,3906.0,3905.0,0.87740262]
[1734274857796,3.38077,3906.0,3905.0,0.87740262]
[1734274858005,3.38077,3906.0,3904.8,1.84540666]
[1734274858006,3.38077,3906.0,3904.8,0.7864]
[1734274858216,3.38077,3906.0,3904.9,0.87758767]
[1734274858420,1.158677,3906.0,3904.9,0.87758767]
[1734274858618,2.56037,3905.7,3904.8,0.7864]
[1734274858881,0.8206,3906.0,3904.8,0.7864]
[1734274858882,2.56042,3905.6,3904.8,0.7864]
[1734274859352,2.56027,3905.9,3904.8,0.7864]
[1734274861959,2.56029,3905.8,3904.8,0.7864]
[1734274863860,4.27096727,3906.3,3904.8,0.7864]
[1734274864027,2.56021,3906.0,3904.8,0.7864]
[1734274864223,0.42709673,3906.2,3904.8,0.7864]
[1734274864457,1.27096727,3906.3,3904.8,0.7864]
[1734274864655,1.27096727,3906.3,3904.9,0.87770228]
[1734274864962,2.56023,3905.9,3904.9,0.87770228]
[1734274865267,1.15511011,3906.7,3905.1,0.7778]
[1734274865474,1.15511011,3906.7,3905.0,1.3420941]
[1734274865475,2.55955,3907.0,3905.6,0.7778]
[1734274865678,2.55958,3906.9,3905.6,0.7778]
[1734274865829,1.06795927,3907.7,3905.9,0.7778]
[1734274866022,0.7705,3907.8,3905.7,2.21860844]
[1734274866023,0.50958251,3907.2,3906.2,2.56002]
[1734274866229,2.55919,3907.5,3906.3,5.52988273]
[1734274866487,2.55919,3907.5,3906.4,2.85101167]
[1734274866652,2.55919,3907.5,3906.4,0.65888894]
[1734274866856,2.55919,3907.5,3906.3,0.7778]
[1734274867073,2.55919,3907.5,3906.4,0.87653225]
[1734274867267,2.55919,3907.5,3906.3,0.7778]
[1734274867571,0.7705,3907.8,3906.4,0.87651726]
[1734274867733,2.55922,3907.5,3906.3,0.7778]
[1734274867934,2.55922,3907.5,3906.4,0.43968867]
[1734274868269,2.55903,3907.8,3906.5,1.65398241]
[1734274868422,2.55903,3907.8,3906.5,0.7778]
[1734274868623,2.55906,3907.7,3906.5,0.7778]
[1734274869444,0.5223848,3907.8,3906.5,0.7778]
[1734274869445,2.55919,3907.5,3906.5,0.7778]
[1734274869644,2.55931,3907.3,3906.5,0.7778]
[1734274870881,2.56011,3906.1,3905.5,0.7778]
[1734274871055,2.5601,3906.1,3905.1,1.83680666]
[1734274871254,2.5601,3906.1,3905.1,0.7778]
[1734274871583,2.56003,3906.2,3905.1,0.7778]
[1734274871767,2.56043,3905.6,3905.1,0.7778]
[1734274872280,2.56063,3905.3,3904.6,0.7921]
[1734274873081,2.56025,3905.9,3904.6,0.7921]
[1734274873280,2.56046,3905.6,3904.6,0.7921]
[1734274874047,0.7523,3905.5,3904.4,1.05900666]
[1734274874254,0.7523,3905.5,3904.2,1.75323935]
[1734274874457,2.56098,3904.8,3904.2,2.19331495]
[1734274874950,0.7523,3905.5,3904.2,1.75323935]
[1734274875132,2.56107,3904.7,3904.2,1.75323935]
[1734274877375,2.56084,3905.0,3904.2,1.75323935]
[1734274878273,0.7523,3905.5,3904.2,1.75323935]
[1734274878274,2.56089,3904.9,3904.2,1.75323935]
[1734274878577,0.7523,3905.5,3904.3,0.17532394]
[1734274878781,2.56113,3904.6,3904.2,1.75323935]
[1734274880978,2.56077,3905.1,3903.6,3.17800395]
[1734274880979,2.56081,3905.1,3904.3,0.7921]
[1734274881498,2.56082,3905.0,3904.3,0.7921]
[1734274882789,0.7523,3905.5,3904.3,0.7921]
[1734274882983,2.56092,3904.9,3904.3,0.7921]
[1734274883658,2.56091,3904.9,3904.3,0.7921]
[1734274883864,2.56098,3904.8,3904.3,0.7921]
[1734274884064,0.7523,3905.5,3904.3,0.7921]
[1734274884482,2.56114,3904.6,3904.3,0.7921]
[1734274885670,0.68305348,3905.4,3904.3,0.7921]
[1734274885671,2.56115,3904.5,3904.3,0.7921]
[1734274886469,2.56095,3904.8,3903.6,0.7921]
[1734274886709,2.56136,3904.2,3903.6,0.7921]
[1734274887117,0.7523,3904.9,3903.6,0.7921]
[1734274887323,2.56109,3904.6,3903.6,0.7921]
[1734274887621,2.56109,3904.6,3903.7,0.18511067]
[1734274888546,2.56109,3904.6,3903.6,0.7921]
[1734274888929,2.56115,3904.5,3903.6,0.7921]
[1734274889131,2.56075,3905.1,3903.6,0.7921]
[1734274889351,0.7523,3904.9,3903.6,0.7921]
[1734274889567,2.56162,3903.8,3903.6,0.7921]
[1734274890278,2.56148,3904.0,3903.6,0.7921]
[1734274890453,2.56154,3903.9,3903.6,0.7921]
[1734274891222,2.56139,3904.2,3903.6,0.7921]
[1734274891460,2.56097,3904.8,3903.6,0.7921]
[1734274891664,2.5612,3904.5,3903.6,0.7921]
[1734274891824,2.56123,3904.4,3903.6,0.7921]
[1734274894125,2.56143,3904.1,3903.6,0.7921]
[1734274894375,2.56148,3904.0,3903.6,0.7921]
[1734274894576,2.56145,3904.1,3903.6,0.7921]
[1734274894964,2.5615,3904.0,3903.6,0.7921]
[1734274896217,2.56117,3904.5,3903.6,0.7921]
[1734274896368,0.8076,3904.2,3902.8,0.8029]
[1734274896724,2.56165,3903.8,3902.8,0.8029]
[1734274897069,2.5614,3904.1,3902.8,0.8029]
[1734274897264,2.56172,3903.7,3902.8,0.8029]
[1734274897472,3.36898,3904.2,3902.8,0.8029]
[1734274897721,2.56198,3903.3,3902.8,0.8029]
[1734274898020,0.3870034,3904.1,3902.8,0.8029]
[1734274898221,2.56201,3903.2,3902.8,0.8029]
[1734274899235,0.7555,3903.5,3902.8,0.8029]
[1734274899236,2.56208,3903.1,3902.8,0.8029]
[1734274899387,2.56208,3903.1,3902.1,0.8117]
[1734274899568,3.31733,3903.5,3902.1,0.8117]
[1734274899569,2.56186,3903.4,3902.1,0.8117]
[1734274899768,2.56223,3902.9,3902.1,0.8117]
[1734274899967,2.56223,3902.9,3902.2,0.25653611]
[1734274900226,2.56227,3902.8,3902.2,0.25653611]
[1734274901012,2.5621,3903.1,3902.2,0.25653611]
[1734274901235,0.7555,3903.5,3902.2,0.25653611]
[1734274901382,2.56209,3903.1,3902.2,0.25653611]
[1734274901585,0.7555,3903.5,3902.1,0.8117]
[1734274901586,2.56221,3902.9,3902.1,0.8117]
[1734274901778,2.56193,3903.3,3902.1,0.8117]
[1734274901977,2.562,3903.2,3902.1,0.8117]
[1734274902226,2.56226,3902.9,3902.1,0.8117]
[1734274902427,2.56229,3902.8,3902.1,0.8117]
[1734274904954,2.56231,3902.8,3902.1,0.8117]
[1734274905443,2.56186,3903.4,3902.1,0.8117]
[1734274905600,2.56252,3902.4,3902.1,0.8117]
[1734274907388,2.56242,3902.6,3902.1,0.8117]
[1734274908028,2.5625,3902.5,3902.1,0.8117]
[1734274908230,3.07336379,3902.9,3902.1,0.8117]
[1734274908438,2.56254,3902.4,3902.1,0.8117]
[1734274909241,0.30733638,3902.8,3901.2,1.3617]
[1734274909386,0.7555,3902.6,3901.2,0.8117]
[1734274909604,2.56279,3902.0,3901.2,0.8117]
[1734274910441,2.56245,3902.5,3901.2,0.8117]
[1734274910646,2.56267,3902.2,3901.2,0.8117]
[1734274911188,0.7555,3903.0,3901.4,0.8117]
[1734274911392,0.7555,3904.1,3901.6,0.8117]
[1734274911706,0.7555,3904.1,3901.9,3.0]
[1734274911915,0.7555,3904.1,3902.8,0.8302]
[1734274911916,3.31692,3904.1,3902.8,0.8302]
[1734274912248,2.56147,3904.0,3902.9,0.339252]
[1734274912947,2.56077,3905.1,3902.9,0.339252]
[1734274913248,3.37042,3904.7,3903.3,2.56191]
[1734274913393,3.37042,3904.7,3903.4,0.8302]
[1734274913591,2.56111,3904.6,3903.4,0.8302]
[1734274914036,0.8094,3904.7,3903.4,0.8302]
[1734274914273,2.56137,3904.2,3902.7,3.39252]
[1734274914501,2.56143,3904.1,3902.8,0.339252]
[1734274914798,0.8094,3904.7,3903.3,0.8302]
[1734274915003,2.56128,3904.3,3903.3,0.8302]
[1734274915503,0.8094,3904.7,3903.3,0.8302]
[1734274915706,2.56108,3904.6,3903.3,0.8302]
[1734274915863,2.56149,3904.0,3903.3,0.8302]
[1734274916067,2.56127,3904.3,3902.8,0.339252]
[1734274916311,2.56158,3903.9,3902.9,0.8302]
[1734274916599,2.56151,3904.0,3902.9,0.8302]
[1734274917300,0.38823215,3904.5,3902.9,0.8302]
[1734274917461,0.8094,3904.7,3903.2,0.8062]
[1734274917883,2.56128,3904.3,3903.2,0.8062]
[1734274918655,0.8094,3904.7,3903.2,0.8062]
[1734274919017,2.56157,3903.9,3903.2,0.8062]
[1734274919167,0.336337,3903.8,3903.2,0.8062]
[1734274919497,2.56161,3903.8,3903.2,0.8062]
[1734274919934,2.56168,3903.7,3903.2,0.8062]
[1734274920228,0.8018,3904.0,3903.2,0.8062]
[1734274920400,2.56166,3903.8,3903.2,0.8062]
[1734274921769,2.5585782,3903.8,3903.2,0.8062]
[1734274922569,0.33603782,3903.8,3902.2,1.05900666]
[1734274922808,2.56202,3903.2,3902.8,0.8062]
[1734274923105,2.56202,3903.2,3902.5,0.8062]
[1734274923506,0.8018,3904.0,3902.5,0.8062]
[1734274923697,2.56207,3903.1,3902.5,0.8062]
[1734274925756,0.8018,3903.3,3902.5,0.8062]
[1734274925757,2.56213,3903.0,3902.5,0.8062]
[1734274925991,3.36374,3903.3,3901.8,0.8062]
[1734274926176,2.56225,3902.9,3901.9,1.06536448]
[1734274926375,2.56225,3902.9,3901.9,0.18652067]
[1734274926580,0.336374,3903.2,3901.9,0.18652067]
[1734274926895,2.5624,3902.6,3901.9,0.18652067]
[1734274927059,2.5624,3902.6,3901.8,0.8062]
[1734274928256,2.56247,3902.5,3901.8,0.8062]
[1734274929565,2.56254,3902.4,3901.8,0.8062]
[1734274929792,2.56259,3902.3,3901.8,0.8062]
[1734274931085,2.56273,3902.1,3901.8,0.8062]
[1734274931385,2.56273,3902.1,3901.1,3.0]
[1734274931386,0.8018,3902.7,3901.1,0.8062]
[1734274931583,2.56292,3901.8,3901.1,0.8062]
[1734274931786,0.8018,3902.7,3901.1,0.8062]
[1734274931787,2.56305,3901.6,3901.1,0.8062]
[1734274931983,2.56308,3901.6,3901.1,0.8062]
[1734274932452,2.56289,3901.9,3901.1,0.8062]
[1734274932654,0.7869,3902.1,3901.1,0.8062]
[1734274932861,2.56286,3901.9,3901.1,0.8062]
[1734274934572,0.7869,3902.1,3901.1,0.8062]
[1734274934788,1.60193891,3903.3,3901.0,0.006614]
[1734274934789,0.7869,3902.8,3901.2,0.85463363]
[1734274934979,2.56229,3902.8,3901.3,0.829]
[1734274935281,2.56229,3902.8,3901.5,0.829]
[1734274935482,2.56229,3902.8,3901.7,0.829]
[1734274936888,0.5146906,3903.1,3901.7,0.829]
[1734274937090,3.0768006,3903.1,3901.7,0.829]
[1734274937291,2.56224,3902.9,3901.7,0.829]
[1734274938287,0.7869,3903.2,3901.7,0.829]
[1734274938616,1.17325294,3903.2,3901.8,0.339207]
[1734274938971,0.7869,3903.2,3901.7,0.829]
[1734274939188,2.56235,3902.7,3901.7,0.829]
[1734274939819,0.7869,3903.2,3901.7,0.829]
[1734274940217,2.56213,3903.0,3901.7,0.829]
[1734274940455,1.3369,3902.9,3901.7,0.829]
[1734274940563,0.389903,3902.8,3901.7,0.829]
[1734274940792,0.389903,3902.8,3901.1,0.829]
[1734274941007,2.56279,3902.0,3901.1,0.829]
[1734274941573,2.56288,3901.9,3901.1,0.829]
[1734274942435,2.56292,3901.8,3901.1,0.829]
[1734274943217,0.7869,3902.2,3901.1,0.829]
[1734274943400,2.56305,3901.6,3901.1,0.829]
[1734274945684,0.256305,3901.6,3901.1,0.829]
[1734274945889,2.56322,3901.4,3901.0,0.006614]
[1734274946786,2.56326,3901.3,3901.0,0.006614]
[1734274947698,2.56333,3901.2,3901.0,0.006614]
[1734274948318,0.51176894,3901.8,3901.0,0.006614]
[1734274948518,0.42986689,3901.8,3901.1,0.829]
[1734274948856,2.56305,3901.6,3901.1,0.829]
[1734274950852,2.56305,3901.6,3901.0,0.006614]
[1734274951143,2.56304,3901.7,3901.0,0.006614]
[1734274951508,0.7869,3902.4,3901.1,0.829]
[1734274952065,2.56283,3902.0,3901.1,0.829]
[1734274952409,0.256283,3902.0,3901.1,0.829]
[1734274952608,0.7583,3901.6,3901.0,0.006614]
[1734274952854,2.56333,3901.2,3901.0,0.006614]
[1734274954830,3.07331826,3901.1,3901.0,0.006614]
[1734274955032,3.38065009,3901.1,3901.0,0.006614]
[1734274958512,4.13895009,3901.1,3901.0,0.006614]
[1734274958847,3.07331826,3901.1,3901.0,0.006614]
[1734274965260,3.83161826,3901.1,3901.0,0.006614]
[1734274967924,3.07331826,3901.1,3901.0,0.006614]
[1734274970611,3.62331826,3901.1,3901.0,0.006614]
[1734274970775,6.62331826,3901.1,3901.0,0.006614]
[1734274970981,7.36148009,3901.1,3901.0,0.006614]
[1734274971180,8.11978009,3901.1,3901.0,0.006614]
[1734274971780,8.11978009,3901.1,3901.0,4e-06]
[1734274975403,2.56403,3900.1,3900.0,200.0]
[1734274975602,2.820433,3900.1,3900.0,200.0]
[1734274975788,2.56403,3900.1,3900.0,200.0]
[1734274977680,2.56393,3900.3,3900.0,200.0]
[1734274977887,2.56383,3900.4,3900.1,0.7861]
[1734274978296,3.0,3900.9,3900.1,0.7861]
[1734274978497,2.5639,3900.3,3900.1,0.7861]
[1734274978719,2.56375,3900.6,3900.1,0.7861]
[1734274978918,0.44954542,3900.9,3900.1,0.7861]
[1734274978919,0.52452491,3900.7,3900.1,0.7861]
[1734274979291,2.56397,3900.2,3900.1,0.7861]
[1734274979724,2.56383,3900.5,3900.1,0.7861]
[1734274979921,2.56397,3900.2,3900.1,0.7861]
[1734274981732,2.56403,3900.1,3900.0,200.0]
[1734274984067,2.87272549,3900.4,3900.0,200.0]
[1734274984337,0.52452491,3900.7,3900.0,200.0]
[1734274984494,2.56379,3900.5,3900.0,200.0]
[1734274985232,2.56388,3900.4,3900.0,200.0]
[1734274985427,2.56403,3900.1,3900.0,200.0]
[1734274987134,3.06716239,3900.1,3900.0,200.0]
[1734274990737,6.06716239,3900.1,3900.0,200.0]
[1734274991317,8.92089782,3900.1,3900.0,193.93484975]
[1734274991520,9.14180424,3900.1,3900.0,193.93484975]
[1734274991943,9.14180424,3900.1,3900.0,190.08869975]
[1734274992139,10.74838124,3900.1,3900.0,190.08869975]
[1734274992541,9.95630424,3900.1,3900.0,190.08869975]
[1734274993081,9.95630424,3900.1,3900.0,184.96049975]
[1734274993258,10.20630424,3900.1,3900.0,183.92477568]
[1734274993420,11.81288124,3900.1,3900.0,183.92477568]
[1734274993620,11.81288124,3900.1,3900.0,181.30747568]
[1734274993964,11.81288124,3900.1,3900.0,180.02542568]
[1734274994141,11.81288124,3900.1,3900.0,177.46132568]
[1734274994855,11.81288124,3900.1,3900.0,176.17927568]
[1734274995077,11.81288124,3900.1,3900.0,172.33312568]
[1734274995269,11.81196561,3900.1,3900.0,172.33312568]
[1734274995471,11.8479065,3900.1,3900.0,170.86612712]
[1734274995672,11.81235311,3900.1,3900.0,168.86547994]
[1734274995900,11.81235311,3900.1,3900.0,167.58342994]
[1734274996018,11.81235311,3900.1,3900.0,164.06432994]
[1734274996225,13.38550614,3900.1,3900.0,160.09147954]
[1734274996428,13.63550614,3900.1,3900.0,159.2077441]
[1734274996833,16.31423623,3900.1,3900.0,155.6601441]
[1734274997033,16.31423623,3900.1,3900.0,151.8139941]
[1734274997262,16.31423623,3900.1,3900.0,151.1169941]
[1734274997469,13.63550614,3900.1,3900.0,151.1169941]
[1734274997853,13.63550614,3900.1,3900.0,148.0328941]
[1734274998067,13.63550614,3900.1,3900.0,145.4687941]
[1734274998272,13.63550614,3900.1,3900.0,144.4997941]
[1734274998533,10.9890039,3900.1,3900.0,144.4997941]
[1734274998768,8.27605941,3900.1,3900.0,144.4997941]
[1734274999176,5.97362014,3900.1,3900.0,144.4997941]
[1734274999677,5.97362014,3900.1,3900.0,138.0895441]
[1734274999901,5.97362014,3900.1,3900.0,136.8074941]
[1734275000041,3.40959014,3900.1,3898.3,0.8215]
[1734275000237,2.56484,3898.9,3898.3,0.8215]
[1734275002468,2.56478,3899.0,3898.3,0.8215]
[1734275003206,2.56466,3899.2,3898.3,0.8215]
[1734275003738,0.8326,3899.4,3898.3,0.8215]
[1734275004023,2.56477,3899.0,3898.3,0.8215]
[1734275004871,1.05347346,3899.3,3898.3,0.8215]
[1734275005091,1.65232681,3899.3,3898.3,0.8215]
[1734275006409,2.56502,3898.6,3897.1,0.7666]
[1734275006578,1.65232681,3899.3,3897.1,0.7666]
[1734275006579,3.55,3898.9,3897.1,0.7666]
[1734275006913,2.56495,3898.7,3897.1,0.7666]
[1734275007070,0.55,3898.7,3897.1,0.7666]
[1734275007273,2.56529,3898.2,3897.1,0.7666]
[1734275008384,1.16975023,3898.6,3897.1,0.7666]
[1734275008560,0.55,3898.4,3897.1,0.7666]
[1734275008868,2.56529,3898.2,3897.1,0.7576]
[1734275009744,2.56535,3898.1,3897.1,0.7576]
[1734275009947,3.11548,3897.9,3897.1,0.7576]
[1734275010146,0.55,3897.7,3897.1,0.7576]
[1734275010482,3.0,3897.8,3897.1,0.7576]
[1734275010483,2.56572,3897.6,3897.1,0.7576]
[1734275010644,2.56584,3897.4,3895.7,0.50894854]
[1734275010846,2.56588,3897.3,3895.6,2.56697]
[1734275011102,2.56588,3897.3,3895.0,4.16683837]
[1734275011103,3.0,3897.7,3895.7,0.256697]
[1734275011278,0.8326,3898.0,3896.1,2.56666]
[1734275011613,0.8326,3898.0,3895.4,0.50525418]
[1734275011614,3.0,3897.7,3896.2,2.56659]
[1734275012044,2.56569,3897.6,3896.3,0.8096]
[1734275013161,3.0,3897.8,3896.3,0.8096]
[1734275013364,2.56568,3897.6,3896.3,0.8096]
[1734275013560,0.256568,3897.5,3896.3,0.8096]
[1734275013998,1.33328755,3898.0,3896.3,0.8096]
[1734275014889,3.0,3897.7,3896.3,0.8096]
[1734275015087,2.56562,3897.7,3896.3,0.8096]
[1734275015312,1.33328755,3898.0,3896.3,0.8096]
[1734275016159,0.55,3897.9,3896.3,0.8096]
[1734275016490,0.8034,3897.3,3896.3,0.8096]
[1734275016696,2.56595,3897.2,3896.3,0.8096]
[1734275017763,0.8034,3897.3,3896.3,0.8096]
[1734275017764,2.56608,3897.0,3896.3,0.8096]